[Event "Bruges Masters 2019"]
[Site "Bruges"]
[Date "2019.08.11"]
[Round "1.8"]
[White "Van Baar, Esper"]
[Black "Van Osch, Mees"]
[Result "1/2-1/2"]
[ECO "B22"]
[WhiteElo "2108"]
[BlackElo "2316"]
[Annotator "NA"]
[PlyCount "114"]
[EventDate "2019.08.11"]
[EventType "swiss"]
[EventCountry "BEL"]
[SourceTitle "playchess.com"]
[Source "ChessBase"]
[SourceQuality "1"]
[TimeControl "5400+30"]

1. e4 {[%emt 0:00:00]} c5 {[%emt 0:00:00]} 2. Nf3 {[%emt 0:00:00]} Nc6 {[%emt 0:00:00]} 3. c3 {[%emt 0:00:42]} Nf6 {[%emt 0:00:02]} 4. e5 {[%emt 0:00:10]} Nd5 {[%emt 0:00:04]} 5. d4 {[%emt 0:00:27]} cxd4 {[%emt 0:00:10]} 6. cxd4 {[%emt 0:00:06]} d6 {[%emt 0:00:03]} 7. Bc4 {[%emt 0:01:17]} Nb6 {[%emt 0:00:30]} 8. Bb5 {[%emt 0:00:05]} dxe5 {[%emt 0:00:20]} 9. Nxe5 {[%emt 0:01:02]} Bd7 {[%emt 0:00:20]} 10. Nxd7 {[%emt 0:00:29]} Qxd7 {[%emt 0:00:06]} 11. O-O {[%emt 0:01:08]} Rd8 {[%emt 0:00:22]} 12. Qb3 {[%emt 0:04:24]} e6 {[%emt 0:01:15]} 13. Nc3 {[%emt 0:06:14]} Be7 {[%emt 0:01:29]} 14. Rd1 {[%emt 0:12:42]} O-O {[%emt 0:01:17]} 15. Be3 {[%emt 0:01:10]} Nd5 {[%emt 0:02:18]} 16. Nxd5 {[%emt 0:00:44]} exd5 {[%emt 0:02:18]} 17. Rac1 {[%emt 0:02:42]} Rc8 {[%emt 0:00:59]} 18. Bxc6 {[%emt 0:05:58]} Rxc6 {[%emt 0:08:55]} 19. Rxc6 {[%emt 0:00:58]} Qxc6 {[%emt 0:00:16]} 20. Rc1 {[%emt 0:00:17]} Qd7 {[%emt 0:00:06]} 21. Bf4 {[%emt 0:09:05]} Qf5 {[%emt 0:00:07]} 22. Be5 {[%emt 0:03:43]} Rc8 {[%emt 0:01:42]} 23. Rxc8+ {[%emt 0:00:47]} Qxc8 {[%emt 0:00:04]} 24. h3 {[%emt 0:00:51]} Qc6 {[%emt 0:00:35]} 25. a4 {[%emt 0:04:41]} h6 {[%emt 0:04:23]} 26. Qc3 {[%emt 0:09:30]} Bd8 {[%emt 0:09:14]} 27. Qxc6 {[%emt 0:12:36]} bxc6 {[%emt 0:00:01]} 28. Bf4 {[%emt 0:05:42]} Bb6 {[%emt 0:18:40]} 29. Be3 {[%emt 0:00:08]} f5 {[%emt 0:00:03]} 30. f4 {[%emt 0:01:34]} Kf7 {[%emt 0:00:20]} 31. b4 {[%emt 0:01:54]} Kf6 {[%emt 0:29:23]} 32. Kf2 {[%emt 0:01:16]} g5 {[%emt 0:00:15]} 33. g3 {[%emt 0:00:21]} g4 {[%emt 0:00:55]} 34. h4 {[%emt 0:01:19]} h5 {[%emt 0:00:03]} 35. Ke2 {[%emt 0:01:10]} Ke6 {[%emt 0:01:55]} 36. Kd3 {[%emt 0:00:33]} Kd7 {[%emt 0:00:11]} 37. Bd2 {[%emt 0:00:34]} Kc8 {[%emt 0:00:16]} 38. Bc3 {[%emt 0:02:10]} Kb7 {[%emt 0:00:06]} 39. Kc2 {[%emt 0:00:53]} Bd8 {[%emt 0:00:08]} 40. Kb3 {[%emt 0:01:00]} Kb6 {[%emt 0:00:51]} 41. Bb2 {[%emt 0:02:00]} a5 {[%emt 0:00:32]} 42. bxa5+ {[%emt 0:00:50]} Kxa5 {[%emt 0:00:16]} 43. Bc3+ {[%emt 0:00:03]} Ka6 {[%emt 0:00:06]} 44. Bb4 {[%emt 0:00:38]} Bf6 {[%emt 0:00:11]} 45. Bc3 {[%emt 0:00:50]} Bd8 {[%emt 0:00:53]} 46. Kc2 {[%emt 0:00:24]} Bc7 {[%emt 0:03:48]} 47. Bb4 {[%emt 0:01:05]} Bb8 {[%emt 0:00:15]} 48. Kd3 {[%emt 0:00:31]} Ba7 {[%emt 0:00:15]} 49. Kc3 {[%emt 0:00:17]} Bb6 {[%emt 0:00:05]} 50. Kd3 {[%emt 0:00:15]} Bc7 {[%emt 0:00:04]} 51. Kc2 {[%emt 0:00:44]} Bb6 {[%emt 0:02:36]} 52. Kd3 {[%emt 0:00:43]} Ba5 {[%emt 0:00:04]} 53. Kc3 {[%emt 0:00:20]} Bd8 {[%emt 0:01:24]} 54. Kc2 {[%emt 0:00:37]} Bf6 {[%emt 0:00:06]} 55. Kd3 {[%emt 0:00:31]} Kb7 {[%emt 0:00:04]} 56. Ke3 {[%emt 0:00:12]} Kc8 {[%emt 0:00:29]} 57. Kd3 {[%emt 0:00:11]} Kb7 {[%emt 0:17:20] Ke4} 1/2-1/2

[Event "Bruges Masters 2019"]
[Site "Bruges"]
[Date "2019.08.11"]
[Round "1.9"]
[White "Goudriaan, Etienne"]
[Black "Vandendriessche, Jan"]
[Result "1-0"]
[ECO "E90"]
[WhiteElo "2341"]
[BlackElo "2078"]
[Annotator "NA"]
[PlyCount "91"]
[EventDate "2019.08.11"]
[EventType "swiss"]
[EventCountry "BEL"]
[SourceTitle "playchess.com"]
[Source "ChessBase"]
[SourceQuality "1"]
[TimeControl "5400+30"]

1. d4 {[%emt 0:00:00]} g6 {[%emt 0:00:00]} 2. c4 {[%emt 0:00:00]} Bg7 {[%emt 0:00:00]} 3. Nc3 {[%emt 0:00:00]} d6 {[%emt 0:00:00]} 4. e4 {[%emt 0:00:18]} Nf6 {[%emt 0:00:00]} 5. Nf3 {[%emt 0:00:36]} O-O {[%emt 0:00:00]} 6. h3 {[%emt 0:00:37]} e5 {[%emt 0:00:50]} 7. d5 {[%emt 0:03:53]} a5 {[%emt 0:00:55]} 8. g4 {[%emt 0:00:30]} Na6 {[%emt 0:00:21]} 9. Be3 {[%emt 0:00:52]} Nd7 {[%emt 0:16:04]} 10. Nd2 {[%emt 0:02:20]} Ndc5 {[%emt 0:02:19]} 11. g5 {[%emt 0:04:02]} c6 {[%emt 0:01:49]} 12. h4 {[%emt 0:03:50]} Nb4 {[%emt 0:05:59]} 13. Bxc5 {[%emt 0:08:55]} dxc5 {[%emt 0:01:12]} 14. a3 {[%emt 0:00:36]} Na6 {[%emt 0:01:51]} 15. Qf3 {[%emt 0:00:06]} Nc7 {[%emt 0:06:00]} 16. O-O-O {[%emt 0:05:32]} cxd5 {[%emt 0:02:37]} 17. cxd5 {[%emt 0:02:21]} Bd7 {[%emt 0:07:29]} 18. a4 {[%emt 0:02:45]} Qe8 {[%emt 0:09:20]} 19. Nc4 {[%emt 0:04:32]} Ra6 {[%emt 0:01:02]} 20. Na3 {[%emt 0:06:46]} Bxa4 {[%emt 0:05:23]} 21. Nxa4 {[%emt 0:00:42]} Qxa4 {[%emt 0:00:24]} 22. Bxa6 {[%emt 0:00:21]} Nxa6 {[%emt 0:00:39]} 23. h5 {[%emt 0:02:03]} c4 {[%emt 0:08:12]} 24. hxg6 {[%emt 0:07:16]} hxg6 {[%emt 0:03:06]} 25. Rh4 {[%emt 0:09:36]} Nc5 {[%emt 0:09:01]} 26. Kb1 {[%emt 0:04:14]} c3 {[%emt 0:10:39]} 27. Rdh1 {[%emt 0:06:13]} cxb2 {[%emt 0:00:39]} 28. Qh3 {[%emt 0:00:53]} f6 {[%emt 0:00:14]} 29. gxf6 {[%emt 0:01:08]} Bxf6 {[%emt 0:04:20]} 30. Rh8+ {[%emt 0:00:11]} Kf7 {[%emt 0:00:25]} 31. Rxf8+ {[%emt 0:01:03]} Kxf8 {[%emt 0:00:14]} 32. Qc8+ {[%emt 0:00:05]} Kf7 {[%emt 0:00:47]} 33. Rh7+ {[%emt 0:01:17]} Bg7 {[%emt 0:00:04]} 34. Qxc5 {[%emt 0:00:42]} Qxe4+ {[%emt 0:02:18]} 35. Kxb2 {[%emt 0:00:07]} Kg8 {[%emt 0:00:18]} 36. Rh3 {[%emt 0:01:50]} Qf5 {[%emt 0:00:30]} 37. Rb3 {[%emt 0:00:28]} e4+ {[%emt 0:00:14]} 38. Ka2 {[%emt 0:00:29]} Qg4 {[%emt 0:02:57]} 39. Rxb7 {[%emt 0:02:31]} Qd1 {[%emt 0:00:25]} 40. Qc8+ {[%emt 0:03:11]} Kh7 {[%emt 0:00:05]} 41. Qh3+ {[%emt 0:00:11]} Kg8 {[%emt 0:00:08]} 42. Rb8+ {[%emt 0:00:20]} Bf8 {[%emt 0:00:14]} 43. Qe6+ {[%emt 0:01:14]} Kg7 {[%emt 0:00:04]} 44. Rb7+ {[%emt 0:00:19]} Kh6 {[%emt 0:00:24]} 45. Qh3+ {[%emt 0:00:25]} Kg5 {[%emt 0:00:12]} 46. Qg3+ {[%emt 0:01:15]} 1-0

[Event "Bruges Masters 2019"]
[Site "Bruges"]
[Date "2019.08.11"]
[Round "1.10"]
[White "Cocquyt, Tijs"]
[Black "Bekker, Stefan"]
[Result "0-1"]
[ECO "A45"]
[WhiteElo "2114"]
[BlackElo "2272"]
[Annotator "NA"]
[PlyCount "147"]
[EventDate "2019.08.11"]
[EventType "swiss"]
[EventCountry "BEL"]
[SourceTitle "playchess.com"]
[Source "ChessBase"]
[SourceQuality "1"]
[TimeControl "5400+30"]

1. d4 {[%emt 0:00:00]} Nf6 {[%emt 0:00:44]} 2. Bg5 {[%emt 0:00:00]} c6 {[%emt 0:06:49]} 3. Bxf6 {[%emt 0:00:00]} exf6 {[%emt 0:01:52]} 4. e3 {[%emt 0:01:23]} Qb6 {[%emt 0:06:25]} 5. b3 {[%emt 0:01:03]} d5 {[%emt 0:02:08]} 6. Bd3 {[%emt 0:07:16]} g6 {[%emt 0:06:29]} 7. Ne2 {[%emt 0:01:51]} Bg7 {[%emt 0:02:31]} 8. O-O {[%emt 0:02:29]} O-O {[%emt 0:00:07]} 9. Nd2 {[%emt 0:00:38]} Bg4 {[%emt 0:04:06]} 10. c4 {[%emt 0:04:41]} Re8 {[%emt 0:07:18]} 11. Qc2 {[%emt 0:11:07]} Na6 {[%emt 0:02:25]} 12. a3 {[%emt 0:01:48]} Bxe2 {[%emt 0:03:02]} 13. Bxe2 {[%emt 0:00:08]} dxc4 {[%emt 0:05:30]} 14. bxc4 {[%emt 0:01:01]} c5 {[%emt 0:01:38]} 15. d5 {[%emt 0:03:14]} Nc7 {[%emt 0:02:29]} 16. Bf3 {[%emt 0:12:56]} Rab8 {[%emt 0:04:16]} 17. Rab1 {[%emt 0:09:35]} Qa6 {[%emt 0:00:12]} 18. Ne4 {[%emt 0:11:10]} b6 {[%emt 0:01:54]} 19. Nd6 {[%emt 0:01:53]} Red8 {[%emt 0:01:06]} 20. Nb5 {[%emt 0:00:27]} Nxb5 {[%emt 0:01:27]} 21. cxb5 {[%emt 0:00:20]} Qa5 {[%emt 0:03:55]} 22. a4 {[%emt 0:01:56]} f5 {[%emt 0:00:29]} 23. Rfd1 {[%emt 0:02:09]} Rd6 {[%emt 0:00:14]} 24. Rbc1 {[%emt 0:03:52]} h5 {[%emt 0:02:13]} 25. e4 {[%emt 0:06:07]} f4 {[%emt 0:00:38]} 26. Qd2 {[%emt 0:00:27]} Qxd2 {[%emt 0:00:28]} 27. Rxd2 {[%emt 0:00:01]} Be5 {[%emt 0:00:11]} 28. Be2 {[%emt 0:03:54]} Re8 {[%emt 0:02:05]} 29. Bc4 {[%emt 0:01:14]} Kg7 {[%emt 0:01:23]} 30. Ra2 {[%emt 0:00:56]} g5 {[%emt 0:02:12]} 31. Kf1 {[%emt 0:03:34]} g4 {[%emt 0:01:05]} 32. f3 {[%emt 0:00:14]} Bd4 {[%emt 0:03:38]} 33. Rcc2 {[%emt 0:01:37]} Kf6 {[%emt 0:01:51]} 34. Re2 {[%emt 0:01:41]} Ke5 {[%emt 0:00:25]} 35. a5 {[%emt 0:00:54]} Rg6 {[%emt 0:02:00]} 36. Ke1 {[%emt 0:03:30]} Be3 {[%emt 0:04:46]} 37. Kd1 {[%emt 0:00:41]} gxf3 {[%emt 0:03:05]} 38. gxf3 {[%emt 0:00:01]} Reg8 {[%emt 0:02:20]} 39. axb6 {[%emt 0:00:42]} axb6 {[%emt 0:00:08]} 40. Re1 {[%emt 0:02:13]} Kd4 {[%emt 0:00:26]} 41. Bf1 {[%emt 0:00:51]} Rg1 {[%emt 0:02:32]} 42. Ra4+ {[%emt 0:00:49]} Ke5 {[%emt 0:00:12]} 43. Ra2 {[%emt 0:00:09]} Rh1 {[%emt 0:00:33]} 44. Bc4 {[%emt 0:00:17]} Rgg1 {[%emt 0:01:11]} 45. Rxg1 {[%emt 0:00:13]} Rxg1+ {[%emt 0:00:08]} 46. Kc2 {[%emt 0:00:45]} Kd4 {[%emt 0:02:15]} 47. Bb3 {[%emt 0:01:08]} c4 {[%emt 0:03:25]} 48. Ra4 {[%emt 0:00:07]} Rc1+ {[%emt 0:01:13]} 49. Kb2 {[%emt 0:00:08]} Kc5 {[%emt 0:01:02]} 50. Bc2 {[%emt 0:00:33]} Rg1 {[%emt 0:00:30]} 51. Bb1 {[%emt 0:00:58]} Bd4+ {[%emt 0:00:19]} 52. Kc2 {[%emt 0:00:12]} Rg2+ {[%emt 0:00:17]} 53. Kc1 {[%emt 0:00:29]} Be3+ {[%emt 0:00:25]} 54. Kd1 {[%emt 0:00:03]} Kxb5 {[%emt 0:01:08]} 55. Ra2 {[%emt 0:00:32]} Rg1+ {[%emt 0:00:07]} 56. Kc2 {[%emt 0:00:07]} Kb4 {[%emt 0:02:13]} 57. d6 {[%emt 0:00:41]} Rc1+ {[%emt 0:01:45]} 58. Kb2 {[%emt 0:00:02]} c3+ {[%emt 0:00:56]} 59. Ka1 {[%emt 0:00:02]} Rd1 {[%emt 0:00:49]} 60. h4 {[%emt 0:02:36]} Bd4 {[%emt 0:01:11]} 61. Rc2 {[%emt 0:00:14]} Be5 {[%emt 0:00:57]} 62. Ka2 {[%emt 0:00:18]} b5 {[%emt 0:00:25]} 63. Rg2 {[%emt 0:00:41]} Rxd6 {[%emt 0:00:17]} 64. Bc2 {[%emt 0:00:22]} Ra6+ {[%emt 0:00:22]} 65. Kb1 {[%emt 0:00:02]} Kc4 {[%emt 0:00:07]} 66. Rg8 {[%emt 0:00:20]} Rc6 {[%emt 0:00:47]} 67. Rd8 {[%emt 0:00:23]} Bd4 {[%emt 0:00:43]} 68. Bd1 {[%emt 0:01:13]} Kd3 {[%emt 0:00:25]} 69. Bc2+ {[%emt 0:00:54]} Ke3 {[%emt 0:00:03]} 70. Ka2 {[%emt 0:00:21]} Rc4 {[%emt 0:01:19]} 71. Kb3 {[%emt 0:00:40]} Kxf3 {[%emt 0:00:32]} 72. Bd3 {[%emt 0:00:16]} c2 {[%emt 0:00:04]} 73. Bxc2 {[%emt 0:00:46]} Ke3 {[%emt 0:00:35]} 74. Bd1 {[%emt 0:01:05]} 0-1

[Event "Bruges Masters 2019"]
[Site "Bruges"]
[Date "2019.08.11"]
[Round "1.11"]
[White "Meulders, Richard"]
[Black "Carvallo, Henri"]
[Result "1/2-1/2"]
[ECO "A53"]
[WhiteElo "2245"]
[BlackElo "2106"]
[Annotator "NA"]
[PlyCount "100"]
[EventDate "2019.08.11"]
[EventType "swiss"]
[EventCountry "BEL"]
[SourceTitle "playchess.com"]
[Source "ChessBase"]
[SourceQuality "1"]
[TimeControl "5400+30"]

1. d4 d6 {[%emt 1:30:30]} 2. Nf3 Nf6 {[%emt 0:00:30]} 3. c4 Nbd7 {[%emt 0:00:30]} 4. g3 e5 {[%emt 0:00:30]} 5. Bg2 Be7 {[%emt 0:00:30]} 6. O-O O-O {[%emt 0:00:30]} 7. Qc2 c6 {[%emt 0:00:30]} 8. Rd1 Qc7 {[%emt 0:00:30]} 9. b3 Re8 {[%emt 0:00:30]} 10. Bb2 Bf8 {[%emt 0:00:30]} 11. Nc3 e4 {[%emt 0:00:30]} 12. Ng5 d5 {[%emt 0:00:30]} 13. cxd5 cxd5 {[%emt 0:00:30]} 14. Rac1 Qa5 {[%emt 0:00:30]} 15. f3 h6 {[%emt 0:00:30]} 16. Nh3 Nb6 {[%emt 0:00:30]} 17. a3 exf3 {[%emt 0:00:30]} 18. exf3 Be6 {[%emt 0:00:30]} 19. Nf4 Nbd7 {[%emt 0:00:30]} 20. b4 Qd8 {[%emt 0:00:30]} 21. Re1 Qb6 {[%emt 0:00:30]} 22. Na4 Qd6 {[%emt 0:00:30]} 23. Nc5 Rac8 {[%emt 0:00:30]} 24. Qd3 b6 {[%emt 0:00:30]} 25. Ncxe6 Rxc1 {[%emt 0:00:30]} 26. Rxc1 fxe6 {[%emt 0:00:30]} 27. Ng6 Qb8 {[%emt 0:00:30]} 28. Bh3 Bd6 {[%emt 0:00:30]} 29. Kg2 Nf8 {[%emt 0:00:30]} 30. Re1 N6h7 {[%emt 0:00:30]} 31. Bc1 Qc7 {[%emt 0:00:30]} 32. Nf4 Ng5 {[%emt 0:00:30]} 33. Bg4 Qf7 {[%emt 0:00:30]} 34. h4 Bxf4 {[%emt 0:00:30]} 35. Bxf4 Ngh7 {[%emt 0:00:30]} 36. Rc1 Nf6 {[%emt 0:00:30]} 37. Bh3 N6d7 {[%emt 0:00:30]} 38. Rc7 a5 {[%emt 0:00:30]} 39. b5 Qe7 {[%emt 0:00:30]} 40. Rc6 Qd8 {[%emt 0:00:30]} 41. Bc7 Qe7 {[%emt 0:00:30]} 42. f4 Nb8 {[%emt 0:00:30]} 43. Rc3 Rc8 {[%emt 0:00:30]} 44. Qc2 Nbd7 {[%emt 0:00:30]} 45. Bg4 Qf6 {[%emt 0:00:30]} 46. Qd2 Qe7 {[%emt 0:00:30]} 47. Bd6 Qe8 {[%emt 0:00:30]} 48. Rc6 Rxc6 {[%emt 0:00:30]} 49. bxc6 Nf6 {[%emt 0:00:30]} 50. Bf3 Qxc6 {[%emt 0:00:30]} 1/2-1/2

[Event "Bruges Masters 2019"]
[Site "Bruges"]
[Date "2019.08.11"]
[Round "1.12"]
[White "Van Herck, Marcel"]
[Black "Offringa, Joost"]
[Result "0-1"]
[ECO "E20"]
[WhiteElo "2102"]
[BlackElo "2291"]
[Annotator "NA"]
[PlyCount "54"]
[EventDate "2019.08.11"]
[EventType "swiss"]
[EventCountry "BEL"]
[SourceTitle "playchess.com"]
[Source "ChessBase"]
[SourceQuality "1"]
[TimeControl "5400+30"]

1. d4 {[%emt 0:00:15]} Nf6 {[%emt 0:00:00]} 2. c4 {[%emt 0:00:07]} e6 {[%emt 0:00:00]} 3. Nc3 {[%emt 0:01:58]} Bb4 {[%emt 0:00:05]} 4. f3 {[%emt 0:02:06]} c5 {[%emt 0:00:41]} 5. d5 {[%emt 0:07:00]} O-O {[%emt 0:00:12]} 6. e4 {[%emt 0:03:33]} d6 {[%emt 0:00:09]} 7. Bd3 {[%emt 0:02:25]} b5 {[%emt 0:07:23]} 8. Bd2 {[%emt 0:14:11]} a6 {[%emt 0:02:45]} 9. Nge2 {[%emt 0:01:04]} Nbd7 {[%emt 0:07:43]} 10. f4 {[%emt 0:09:54]} bxc4 {[%emt 0:14:41]} 11. Bxc4 {[%emt 0:00:06]} Nb6 {[%emt 0:00:08]} 12. b3 {[%emt 0:06:11]} Bxc3 {[%emt 0:12:30]} 13. Nxc3 {[%emt 0:00:31]} Nxe4 {[%emt 0:00:21]} 14. Nxe4 {[%emt 0:03:07]} exd5 {[%emt 0:00:31]} 15. Bxd5 {[%emt 0:03:20]} Nxd5 {[%emt 0:00:06]} 16. O-O {[%emt 0:00:06]} Bb7 {[%emt 0:08:21]} 17. f5 {[%emt 0:02:13]} Nf6 {[%emt 0:04:10]} 18. Ng3 {[%emt 0:02:14]} h6 {[%emt 0:04:23]} 19. Rc1 {[%emt 0:00:39]} Re8 {[%emt 0:03:12]} 20. Bf4 {[%emt 0:04:34]} d5 {[%emt 0:03:20]} 21. Qd2 {[%emt 0:01:56]} Ne4 {[%emt 0:03:23]} 22. Nxe4 {[%emt 0:00:20]} Rxe4 {[%emt 0:00:03]} 23. Rxc5 {[%emt 0:00:49]} Qb6 {[%emt 0:00:52]} 24. Qf2 {[%emt 0:00:40]} Rae8 {[%emt 0:00:51]} 25. Rc2 {[%emt 0:14:51]} d4 {[%emt 0:02:37]} 26. Bg3 {[%emt 0:02:29]} Qf6 {[%emt 0:07:12]} 27. Rd1 {[%emt 0:00:39]} d3 {[%emt 0:00:45]} 0-1

[Event "Bruges Masters 2019"]
[Site "Bruges"]
[Date "2019.08.11"]
[Round "2.1"]
[White "Den Hartog, Marijn"]
[Black "Ortiz Suarez, Isan Reynaldo"]
[Result "0-1"]
[ECO "A37"]
[WhiteElo "2222"]
[BlackElo "2533"]
[Annotator "ChessBase"]
[PlyCount "82"]
[EventDate "2019.08.11"]
[EventType "swiss"]
[EventCountry "BEL"]
[SourceTitle "playchess.com"]
[Source "ChessBase"]
[SourceQuality "1"]
[TimeControl "5400+30"]

1. Nf3 {[%emt 0:00:00]} c5 {[%emt 0:00:00]} 2. g3 {[%emt 0:00:23]} g6 {[%emt 0:00:00]} 3. c4 {[%emt 0:03:58]} Bg7 {[%emt 0:00:00]} 4. Nc3 {[%emt 0:00:07]} Nc6 {[%emt 0:00:06]} 5. Bg2 {[%emt 0:00:29]} e5 {[%emt 0:00:10]} 6. d3 {[%emt 0:03:08]} Nge7 {[%emt 0:00:11]} 7. Bg5 {[%emt 0:09:12]} h6 {[%emt 0:01:09]} 8. Bd2 {[%emt 0:00:03]} O-O {[%emt 0:00:31]} 9. Qc1 {[%emt 0:01:05]} Kh7 {[%emt 0:00:10]} 10. h4 {[%emt 0:06:53]} d6 {[%emt 0:01:05]} 11. h5 {[%emt 0:00:08]} g5 {[%emt 0:00:03]} 12. e4 {[%emt 0:45:07]} f5 {[%emt 0:04:29]} 13. Nh2 {[%emt 0:04:37]} Nd4 {[%emt 0:02:17]} 14. Ne2 {[%emt 0:02:26]} Nxe2 {[%emt 0:01:14]} 15. Kxe2 {[%emt 0:00:02]} Nc6 {[%emt 0:00:19]} 16. Bc3 {[%emt 0:00:32]} Kh8 {[%emt 0:05:38]} 17. f3 {[%emt 0:02:53]} Be6 {[%emt 0:01:33]} 18. Qd2 {[%emt 0:11:44]} Qd7 {[%emt 0:01:52]} 19. Raf1 {[%emt 0:04:58]} a6 {[%emt 0:00:30]} 20. b3 {[%emt 0:00:59]} b5 {[%emt 0:00:08]} 21. f4 {[%emt 0:00:23]} exf4 {[%emt 0:03:46]} 22. gxf4 {[%emt 0:00:05]} fxe4 {[%emt 0:04:21]} 23. Bxe4 {[%emt 0:00:03]} d5 {[%emt 0:03:12]} 24. cxd5 {[%emt 0:00:34]} Bxd5 {[%emt 0:00:05]} 25. Bxg7+ {[%emt 0:00:28]} Kxg7 {[%emt 0:00:05]} 26. fxg5 {[%emt 0:00:25]} Bxe4 {[%emt 0:01:10]} 27. gxh6+ {[%emt 0:00:19]} Kh7 {[%emt 0:00:28]} 28. dxe4 {[%emt 0:00:08]} Nd4+ {[%emt 0:01:14]} 29. Kd1 {[%emt 0:01:36]} Qh3 {[%emt 0:00:06]} 30. Nf3 {[%emt 0:01:22]} Rxf3 {[%emt 0:00:38]} 31. Rxh3 {[%emt 0:00:26]} Rxf1+ {[%emt 0:00:07]} 32. Qe1 {[%emt 0:00:04]} Rxe1+ {[%emt 0:00:05]} 33. Kxe1 {[%emt 0:00:01]} Re8 {[%emt 0:00:12]} 34. Kd2 {[%emt 0:00:55]} Rxe4 {[%emt 0:00:16]} 35. Kd3 {[%emt 0:00:27]} Rg4 {[%emt 0:00:28]} 36. Re3 {[%emt 0:01:00]} Kxh6 {[%emt 0:00:13]} 37. Re8 {[%emt 0:00:29]} Kxh5 {[%emt 0:00:34]} 38. Rh8+ {[%emt 0:00:15]} Kg5 {[%emt 0:00:04]} 39. Ra8 {[%emt 0:00:04]} Kf5 {[%emt 0:00:50]} 40. Rxa6 {[%emt 0:00:25]} Rg3+ {[%emt 0:00:05]} 41. Kd2 {[%emt 0:00:09]} Ke4 {[%emt 0:00:18]} 0-1

[Event "Bruges Masters 2019"]
[Site "Bruges"]
[Date "2019.08.11"]
[Round "2.2"]
[White "Tirelli, Mauro"]
[Black "Legky, Nikolay A"]
[Result "1/2-1/2"]
[ECO "D02"]
[WhiteElo "2247"]
[BlackElo "2397"]
[Annotator "NA"]
[PlyCount "108"]
[EventDate "2019.08.11"]
[EventType "swiss"]
[EventCountry "BEL"]
[SourceTitle "playchess.com"]
[Source "ChessBase"]
[SourceQuality "1"]
[TimeControl "5400+30"]

1. d4 {[%emt 0:00:20]} d5 {[%emt 0:00:00]} 2. Bf4 {[%emt 0:00:53]} c5 {[%emt 0:00:04]} 3. e3 {[%emt 0:00:21]} Nc6 {[%emt 0:00:05]} 4. Nf3 {[%emt 0:02:20]} Bg4 {[%emt 0:02:22]} 5. Nbd2 {[%emt 0:11:15]} e6 {[%emt 0:03:25]} 6. c3 {[%emt 0:02:40]} Nf6 {[%emt 0:00:08]} 7. h3 {[%emt 0:03:23]} Bh5 {[%emt 0:00:11]} 8. Qb3 {[%emt 0:01:09]} Qb6 {[%emt 0:02:58]} 9. Qxb6 $11 {[%emt 0:10:27]} axb6 {[%emt 0:00:19]} 10. Bb5 {[%emt 0:01:47]} Nd7 {[%emt 0:01:06]} 11. Be2 {[%emt 0:07:23]} c4 {[%emt 0:05:08]} 12. a3 {[%emt 0:03:00]} b5 {[%emt 0:00:08]} 13. O-O {[%emt 0:00:23]} Be7 {[%emt 0:04:55]} 14. e4 {[%emt 0:06:17]} Nb6 {[%emt 0:04:07]} 15. exd5 {[%emt 0:05:16]} exd5 {[%emt 0:00:06]} 16. Rfe1 {[%emt 0:00:12]} Bg6 {[%emt 0:07:39]} 17. Bd1 {[%emt 0:07:19]} O-O {[%emt 0:06:02]} 18. Bc7 {[%emt 0:06:57]} Na4 {[%emt 0:04:54]} 19. Bxa4 {[%emt 0:00:11]} bxa4 {[%emt 0:00:03]} 20. Ne5 {[%emt 0:01:41]} Rfe8 {[%emt 0:03:26]} 21. Nd7 {[%emt 0:01:48]} f6 {[%emt 0:10:17]} 22. Nf1 {[%emt 0:11:58]} Bd8 {[%emt 0:19:00]} 23. Bd6 {[%emt 0:02:44]} b6 {[%emt 0:06:21]} 24. Rxe8+ {[%emt 0:01:08]} Bxe8 {[%emt 0:00:05]} 25. Nf8 {[%emt 0:00:05]} Bf7 {[%emt 0:06:17]} 26. Re1 {[%emt 0:00:20]} Ra7 {[%emt 0:01:10]} 27. Ne6 {[%emt 0:03:21]} Bxe6 {[%emt 0:00:05]} 28. Rxe6 {[%emt 0:00:12]} Kf7 {[%emt 0:00:01]} 29. Re2 {[%emt 0:00:31]} Rd7 {[%emt 0:00:35]} 30. Bg3 {[%emt 0:02:29]} Re7 {[%emt 0:01:26]} 31. Rxe7+ {[%emt 0:02:30]} Bxe7 {[%emt 0:00:16]} 32. Ne3 {[%emt 0:00:06]} Ke6 {[%emt 0:00:04]} 33. f4 {[%emt 0:01:51]} f5 {[%emt 0:00:58]} 34. Kf2 {[%emt 0:00:20]} Na7 {[%emt 0:00:43]} 35. Ke2 {[%emt 0:01:32]} Nb5 {[%emt 0:00:06]} 36. Nf1 {[%emt 0:01:50]} Nd6 {[%emt 0:03:44]} 37. Nd2 {[%emt 0:00:06]} h5 {[%emt 0:00:03]} 38. Nf3 {[%emt 0:00:59]} Ne4 {[%emt 0:00:14]} 39. Be1 {[%emt 0:00:05]} g5 {[%emt 0:02:26]} 40. fxg5 {[%emt 0:00:12]} Nxg5 {[%emt 0:00:04]} 41. Bd2 {[%emt 0:02:15]} Ne4 {[%emt 0:00:18]} 42. Bf4 {[%emt 0:00:21]} b5 {[%emt 0:01:27]} 43. Ne5 {[%emt 0:00:55]} Bd6 {[%emt 0:01:23]} 44. Ng6 {[%emt 0:00:35]} Kf6 {[%emt 0:01:40]} 45. Bxd6 {[%emt 0:00:14]} Kxg6 {[%emt 0:00:03]} 46. Bf4 {[%emt 0:00:17]} Ng5 {[%emt 0:04:24]} 47. Ke3 {[%emt 0:00:33]} Ne6 {[%emt 0:00:17]} 48. h4 {[%emt 0:00:25]} Kf7 {[%emt 0:01:07]} 49. Be5 {[%emt 0:00:08]} Ke8 {[%emt 0:00:10]} 50. Kf3 {[%emt 0:00:22]} Kd7 {[%emt 0:00:09]} 51. Ke3 {[%emt 0:00:12]} Nf8 {[%emt 0:02:25]} 52. g3 {[%emt 0:01:11]} Ng6 {[%emt 0:00:04]} 53. Bf4 {[%emt 0:00:36]} Ke6 {[%emt 0:00:04]} 54. Bg5 {[%emt 0:00:26]} Kf7 {[%emt 0:02:28] Ke4} 1/2-1/2